bitfinex/quotes_ETHUSD_20251017
["timestamp","ask_amount","ask_price","bid_price","bid_amount"]
[1760717455547,0.002,3833.2,3833.1,7.7105634]
[1760717455846,0.002,3833.2,3833.1,8.7572114]
[1760717456326,0.002,3833.2,3833.1,9.3908114]
[1760717456628,0.002,3833.2,3833.1,16.4367314]
[1760717456830,0.002,3833.2,3833.1,13.5532304]
[1760717457016,0.002,3833.2,3833.1,5.6649834]
[1760717457327,0.002,3833.2,3833.1,5.13015445]
[1760717458104,0.002,3833.2,3833.1,4.70155445]
[1760717458303,0.002,3833.2,3833.1,0.1304]
[1760717459049,0.002,3833.2,3833.1,3.40215445]
[1760717459402,0.002,3833.2,3833.1,4.06184299]
[1760717459634,0.002,3833.2,3833.1,4.03575445]
[1760717460327,0.002,3833.2,3833.1,2.97355445]
[1760717460497,0.002,3833.2,3832.3,1.728]
[1760717460834,0.002,3833.2,3832.8,2.60899724]
[1760717461030,0.002,3833.2,3832.6,2.60914143]
[1760717461230,0.002,3833.2,3832.8,2.60904135]
[1760717461430,0.002,3833.2,3832.4,3.3176]
[1760717461623,0.002,3833.2,3832.6,2.60918335]
[1760717461819,0.002,3833.2,3832.1,0.2348]
[1760717462023,0.002,3833.2,3831.0,15.37279601]
[1760717462024,2.60905454,3832.9,3831.4,2.60998985]
[1760717462226,0.2155,3832.5,3831.0,0.2327]
[1760717462403,0.2155,3832.5,3831.1,2.61115574]
[1760717462605,2.60965072,3832.0,3831.1,0.001]
[1760717462841,2.78837587,3832.4,3831.1,0.001]
[1760717463143,2.61012666,3831.3,3831.1,0.001]
[1760717463435,0.3955,3832.0,3831.1,0.001]
[1760717463436,2.6100723,3831.4,3831.1,0.001]
[1760717463610,0.3955,3831.2,3831.1,0.001]
[1760717463814,3.30620617,3831.2,3831.1,0.001]
[1760717464500,3.71564936,3831.2,3831.1,0.001]
[1760717465600,0.40944319,3831.2,3831.1,0.001]
[1760717466019,1.728,3832.7,3831.1,0.001]
[1760717466020,0.1825,3832.3,3831.1,0.001]
[1760717466217,0.40935053,3831.7,3831.1,2.6111969]
[1760717466470,0.40935053,3831.7,3831.1,0.2236]
[1760717466618,0.1825,3832.3,3831.1,0.001]
[1760717466824,2.60972571,3831.9,3831.1,0.001]
[1760717467132,2.60967144,3831.9,3831.1,0.001]
[1760717467302,0.40930963,3832.0,3831.1,0.001]
[1760717467739,2.61014825,3831.2,3831.1,0.001]
[1760717468115,2.79264825,3831.2,3831.1,0.001]
[1760717468317,3.20206548,3831.2,3831.1,0.001]
[1760717468520,2.61035265,3830.9,3830.8,0.001]
[1760717468719,2.82585265,3830.9,3830.8,0.001]
[1760717469142,3.646276,3831.2,3830.8,0.001]
[1760717469143,0.45491551,3831.2,3830.8,0.001]
[1760717469315,0.40941723,3831.2,3830.8,0.001]
[1760717469515,2.61022374,3831.1,3830.8,0.001]
[1760717469855,2.61035265,3830.9,3830.8,0.001]
[1760717470512,2.81165265,3830.9,3830.8,0.001]
[1760717470713,3.40782128,3830.9,3830.8,0.001]
[1760717471450,2.6106934,3830.4,3830.3,1e-08]
[1760717471612,1.728,3830.4,3827.8,0.2226]
[1760717471812,1.728,3830.1,3827.8,0.2226]
[1760717472013,0.59616863,3830.9,3827.2,0.2226]
[1760717472014,0.6336,3829.8,3827.2,0.2226]
[1760717473748,0.2155,3827.9,3826.5,0.2226]
[1760717473963,1.7106996,3829.2,3827.8,0.2226]
[1760717474114,0.4548,3829.3,3827.8,0.2226]
[1760717474408,0.2155,3830.1,3828.0,0.6336]
[1760717474609,0.2153,3829.8,3828.1,0.8125424]
[1760717474808,0.2155,3830.1,3828.2,0.48222193]
[1760717475054,0.2155,3830.1,3828.2,0.4561]
[1760717475414,2.61124507,3829.6,3828.2,0.4561]
[1760717475608,0.2153,3830.4,3828.3,4.40535]
[1760717475609,0.2152,3829.9,3828.3,4.40535]
[1760717475823,2.61131462,3829.5,3828.4,0.52178924]
[1760717476024,0.40954555,3829.5,3828.4,0.52178924]
[1760717476227,0.40954555,3829.5,3828.7,2.61184713]
[1760717476464,0.40954555,3829.5,3828.5,0.4561]
[1760717476813,0.2009,3830.1,3828.1,0.3564424]
[1760717476814,0.2155,3833.0,3830.7,22.168312]
[1760717477012,0.2155,3833.0,3829.4,18.49889093]
[1760717477013,0.2155,3833.0,3832.9,2.60899058]
[1760717477252,0.2155,3833.0,3832.9,6.86211058]
[1760717477412,0.002,3834.0,3833.1,2.60885445]
[1760717477413,0.04548079,3833.9,3833.1,2.60885445]
[1760717477786,0.002,3834.0,3833.1,8.44621045]
[1760717477910,0.002,3834.0,3833.1,9.53591045]
[1760717478114,0.002,3834.0,3833.1,5.01555445]
[1760717478309,0.002,3834.0,3833.1,0.2226]
[1760717478612,0.002,3834.0,3833.0,0.02608922]
[1760717478949,2.60832636,3833.9,3832.8,2.83165418]
[1760717479145,0.194,3833.9,3832.7,2.60912579]
[1760717479358,0.194,3833.9,3832.6,1.728]
[1760717479537,0.002,3834.0,3832.7,0.48219126]
[1760717479740,0.002,3834.0,3833.1,2.83145445]
[1760717479940,0.002,3834.0,3833.1,2.85754299]
[1760717480149,2.60680295,3836.2,3833.1,2.85754299]
[1760717480150,0.1435,3838.1,3833.1,17.56193354]
[1760717480314,0.1435,3838.1,3834.4,0.6336]
[1760717480515,0.1918,3837.8,3835.1,9.057528]
[1760717480758,0.1918,3837.8,3834.6,31.728]
[1760717481057,2.71183366,3837.4,3835.1,3.28617908]
[1760717481259,0.1918,3837.8,3835.1,3.28617908]
[1760717481260,0.1059,3837.0,3835.1,0.2226]
[1760717481416,2.60688164,3836.1,3834.4,0.4561]
[1760717481728,0.26068816,3836.0,3834.5,0.02607901]
[1760717481930,0.0454349,3836.8,3834.7,2.3616]
[1760717482133,0.002,3837.1,3835.0,5.48153]
[1760717482336,2.60624499,3837.0,3835.6,2.3616]
[1760717482654,0.002,3837.1,3835.7,0.6735]
[1760717483411,2.60814295,3837.1,3835.7,0.6735]
[1760717483619,0.002,3837.1,3835.5,1.728]
[1760717483855,0.002,3837.1,3835.4,5.848423]
[1760717483856,0.002,3837.1,3835.6,0.4465]
[1760717484056,2.60633861,3836.8,3835.6,3.05365184]
[1760717484211,0.002,3837.1,3835.9,2.60694854]
[1760717484414,0.002,3837.1,3836.0,8.786248]
[1760717484610,0.002,3837.1,3836.1,0.8786248]
[1760717484855,0.002,3837.1,3836.7,2.60638239]
[1760717485016,0.002,3837.1,3836.8,0.02606338]
[1760717485370,0.002,3837.5,3837.4,3.23953109]
[1760717485559,0.002,3837.9,3837.8,10.54963149]
[1760717485858,0.002,3837.9,3837.8,12.59388249]
[1760717486060,2.60298151,3841.8,3837.9,0.6336]
[1760717486061,2.74760789,3840.3,3837.9,0.6336]
[1760717486214,0.103,3839.9,3838.0,0.02605523]
[1760717486566,0.1436,3840.3,3838.0,0.02605523]
[1760717486567,2.60603678,3840.2,3838.1,0.6735]
[1760717486778,2.60410525,3840.1,3838.1,0.6735]
[1760717486978,2.81529689,3840.0,3838.1,0.6735]
[1760717487161,2.60478555,3839.1,3838.1,0.227]
[1760717487476,0.2111,3840.0,3838.2,0.4465]
[1760717487679,0.29201935,3839.9,3838.2,0.4465]
[1760717487844,2.6050128,3838.8,3838.2,0.4465]
[1760717488379,2.74762397,3840.3,3838.4,2.60525218]
[1760717488581,0.1436,3840.3,3838.3,0.6336]
[1760717488770,2.60416666,3840.0,3838.5,0.6336]
[1760717488967,0.1436,3840.3,3838.5,0.6336]
[1760717489188,0.2134,3840.1,3838.6,0.4465]
[1760717489486,2.60564835,3837.9,3837.7,0.227]
[1760717489661,2.60564835,3837.9,3837.3,0.6735]
[1760717489662,0.1777,3838.8,3837.3,0.6735]
[1760717489847,0.1777,3838.8,3837.0,0.227]
[1760717489848,2.60559659,3837.9,3837.0,0.227]
[1760717490048,2.60511644,3838.6,3837.0,0.227]
[1760717490283,2.60599371,3837.4,3837.0,0.227]
[1760717490453,2.60612884,3837.2,3837.0,0.6735]
[1760717490784,2.60551439,3838.1,3837.0,0.6735]
[1760717490944,2.60613484,3837.1,3837.0,0.227]
[1760717491146,2.60579528,3837.6,3836.4,0.4465]
[1760717491452,0.19,3837.8,3837.0,0.1296]
[1760717491660,2.60579528,3837.6,3837.5,0.1296]
[1760717491862,0.1296,3838.3,3835.9,0.6735]
[1760717491863,2.60565949,3837.8,3835.9,0.6735]
[1760717492080,0.288,3838.2,3835.9,0.6735]
[1760717492269,0.30229134,3838.3,3836.1,1.728]
[1760717492470,2.60511644,3838.6,3836.2,0.4465]
[1760717492658,2.60504858,3838.7,3836.7,8.060293]
[1760717492868,2.60578645,3837.7,3836.8,3.05281118]
[1760717493060,0.1777,3838.8,3837.6,0.227]
[1760717493262,2.60504858,3838.7,3837.6,0.227]
[1760717493458,0.1751,3839.0,3837.7,0.02605727]
[1760717493459,2.77994548,3839.0,3837.7,0.02605727]
[1760717493761,2.60607805,3840.2,3837.8,3.26526446]
[1760717493762,2.60498966,3838.8,3837.8,3.26526446]
[1760717493957,0.04540044,3840.0,3838.0,0.6336]
[1760717494179,2.6043023,3839.8,3838.2,0.6336]
[1760717494384,2.60423448,3839.9,3838.3,2.60529046]
[1760717494586,0.3124,3840.1,3838.4,0.4465]
[1760717494587,0.2134,3840.1,3838.4,0.4465]
[1760717494795,2.81754741,3840.1,3838.4,3.05173443]
[1760717495079,2.60463114,3839.4,3838.4,0.4465]
[1760717495283,0.2134,3840.1,3838.4,0.4465]
[1760717495445,2.70316666,3840.0,3837.9,0.4465]
[1760717495648,2.60437013,3839.7,3837.9,0.4465]
[1760717495952,2.60530973,3838.4,3837.9,0.4465]
[1760717496379,2.60530973,3838.4,3837.6,1.955]
[1760717496380,2.60530973,3838.4,3837.6,2.83278553]
[1760717496684,2.60519443,3838.5,3837.6,2.83278553]
[1760717496853,2.60509059,3838.7,3837.8,2.60562951]
[1760717497055,2.60458979,3839.4,3837.9,2.60555979]
[1760717497253,0.28796898,3839.3,3838.0,2.60547512]
[1760717497446,2.60493104,3838.9,3837.9,0.6336]
[1760717497651,2.60503194,3838.8,3838.0,2.60550319]
[1760717497850,2.60503194,3838.8,3837.9,3.23917928]
[1760717498285,0.1759,3838.9,3837.4,1.728]
[1760717498484,2.60551087,3838.1,3837.4,1.728]
[1760717498690,0.26055109,3838.1,3836.6,0.4465]
[1760717498855,2.60571376,3837.8,3836.7,6.0676516]
[1760717499051,0.1759,3838.9,3836.9,0.6336]
[1760717499257,2.78086817,3838.9,3837.3,2.60593975]
[1760717499475,2.78086186,3838.9,3837.4,0.25305931]
[1760717499686,0.38776898,3839.3,3837.6,6.925507]
[1760717499687,2.8926118,3839.3,3837.6,6.925507]
[1760717499987,0.30687118,3839.2,3837.7,0.6336]
[1760717500287,2.70380233,3839.1,3837.5,0.4465]
[1760717500458,2.60484501,3839.0,3837.5,2.6058041]
[1760717500785,2.60491286,3838.9,3837.4,0.227]
[1760717500963,0.2757,3838.8,3837.1,2.3616]
[1760717501152,2.99290987,3838.7,3836.4,0.4465]
[1760717501349,2.60584423,3837.6,3836.9,1.728]
[1760717501586,2.99290987,3838.7,3836.5,2.6065285]
[1760717501753,2.60511644,3838.6,3836.5,2.6065285]
[1760717501967,2.60511644,3838.6,3837.9,0.1296]
[1760717501968,2.60552371,3838.0,3837.9,0.1296]
[1760717502272,2.60552371,3838.0,3836.4,0.4465]
[1760717502273,2.60614486,3837.1,3836.4,0.4465]
[1760717502583,2.60621638,3837.0,3836.4,0.4465]
[1760717503150,2.60576718,3837.7,3836.4,0.4465]
[1760717503151,0.26055237,3838.0,3836.4,2.1745]
[1760717503383,0.26055237,3838.0,3836.6,2.60642622]
[1760717503683,2.60602035,3837.3,3836.5,8.646297]
[1760717503851,2.60579811,3837.6,3837.2,0.227]
[1760717504291,0.28806129,3838.7,3837.3,0.4465]
[1760717504469,0.1008,3839.1,3837.3,0.4465]
[1760717504787,0.1008,3839.1,3837.3,3.05248359]
[1760717504991,2.70561936,3839.1,3837.6,2.60577704]
[1760717505160,2.60485596,3839.0,3837.3,3.05247896]
[1760717505357,2.60471277,3839.2,3837.2,0.227]
[1760717505358,2.60574724,3837.7,3837.2,0.227]
[1760717505588,2.60538264,3838.3,3837.3,0.6735]
[1760717505789,2.60511644,3838.6,3837.3,0.6735]
[1760717505989,0.1744,3838.7,3837.3,1.26207363]
[1760717506182,2.60536641,3838.3,3837.3,3.86803911]
[1760717506358,0.002,3838.8,3837.3,1.26207363]
[1760717506560,0.002,3838.8,3837.4,0.65965931]
[1760717506762,0.002,3838.8,3837.9,2.60553621]
[1760717507087,0.002,3838.8,3838.0,6.227214]
[1760717507289,0.002,3838.8,3837.6,2.60579317]
[1760717507606,2.60509446,3838.7,3837.8,2.60560488]
[1760717507758,2.60523279,3838.5,3837.8,1.728]
[1760717507955,0.002,3838.8,3837.5,0.4465]
[1760717508181,2.70554858,3838.7,3836.1,0.001]
[1760717508507,2.60518431,3838.5,3836.9,0.227]
[1760717508674,2.9937097,3838.6,3836.6,0.4465]
[1760717508999,2.60594444,3837.4,3836.6,0.4465]
[1760717509223,2.60563095,3837.9,3836.6,0.4465]
[1760717509431,2.60538794,3838.2,3836.6,0.4465]
[1760717509734,2.60608148,3837.2,3836.6,0.4465]
[1760717509943,2.60608343,3837.2,3836.6,0.4465]
[1760717510293,0.1881,3837.7,3836.5,2.6075289]
[1760717510493,2.6060467,3837.3,3836.6,2.6064709]
[1760717510792,0.1881,3838.0,3836.5,0.4475]
[1760717510996,2.60533221,3838.3,3837.0,0.6336]
[1760717511293,2.60540165,3838.2,3837.5,2.60581595]
[1760717511488,2.60540165,3838.2,3837.3,2.605999]
[1760717511489,0.1051,3838.8,3837.3,2.60599862]
[1760717511799,2.60552751,3838.0,3837.3,2.60599196]
[1760717512000,0.002,3838.8,3836.8,0.4383]
[1760717512203,0.2885,3838.2,3837.6,0.1296]
[1760717512551,2.60647448,3836.6,3836.5,0.001]
[1760717512849,3.12776098,3836.6,3836.5,0.001]
[1760717512993,3.41546098,3836.6,3836.5,0.001]
[1760717513646,2.60701809,3835.8,3835.7,1e-08]
[1760717513797,4.33501809,3835.8,3835.7,1e-08]
[1760717513995,4.62161809,3835.8,3835.7,1e-08]
[1760717514192,5.34447292,3835.8,3835.7,1e-08]
[1760717514599,2.89361809,3835.8,3835.7,1e-08]
[1760717514804,2.60701809,3835.8,3835.7,1e-08]
[1760717515134,0.099,3836.4,3835.7,1e-08]
[1760717515308,2.60701809,3835.8,3835.7,1e-08]
[1760717515505,2.70691809,3835.8,3835.7,1e-08]
[1760717515807,2.60701809,3835.8,3835.7,1e-08]
[1760717516136,3.22831275,3835.8,3835.7,1e-08]
[1760717516544,3.12841275,3835.8,3835.7,1e-08]
[1760717516779,3.22831275,3835.8,3835.7,1e-08]
[1760717516950,4.95631275,3835.8,3835.7,1e-08]
[1760717518372,0.40898616,3835.8,3835.7,1e-08]
[1760717518552,3.01600425,3835.8,3835.7,1e-08]
[1760717519238,0.40898616,3835.8,3835.7,1e-08]
[1760717519674,3.01600425,3835.8,3835.7,1e-08]
[1760717520498,0.40898616,3835.8,3835.7,1e-08]
[1760717520643,3.01600425,3835.8,3835.7,1e-08]
[1760717520842,0.40898616,3835.8,3835.7,1e-08]
[1760717521348,2.60661069,3836.4,3835.7,0.43830001]
[1760717521537,0.13056792,3838.7,3835.7,0.43830001]
[1760717521538,0.40882826,3837.1,3836.3,0.2142]
[1760717521953,0.2127,3837.9,3836.4,0.4383]
[1760717522152,0.2127,3837.9,3836.3,0.2142]
[1760717522153,0.40871698,3837.2,3836.3,0.2142]
[1760717522356,0.40871698,3837.2,3835.9,2.1793]
[1760717522357,2.60579528,3837.6,3835.9,2.1793]
[1760717522579,2.60613484,3837.1,3837.0,0.1296]
[1760717522773,2.60613484,3837.1,3835.7,1e-08]
[1760717522774,0.36071348,3837.1,3835.7,1e-08]
[1760717522978,0.5383476,3837.2,3836.5,0.1296]
[1760717523177,2.60613484,3837.1,3837.0,0.1296]
[1760717524272,0.4087704,3837.5,3837.0,0.1296]
[1760717524473,2.60613484,3837.1,3837.0,0.1296]
[1760717524899,2.60663753,3836.4,3835.7,1e-08]
[1760717525066,2.60627068,3836.9,3836.5,0.1296]
[1760717525392,2.6068405,3836.1,3835.7,1e-08]
[1760717525583,0.189,3836.8,3835.7,1e-08]
[1760717525769,0.189,3836.8,3836.0,0.1296]
[1760717525970,0.3186,3836.9,3836.3,0.1296]
[1760717526171,2.60661036,3836.4,3836.3,0.1296]
[1760717527796,2.60633861,3836.8,3836.3,0.1296]
[1760717528106,2.60640654,3836.7,3836.6,0.1296]
[1760717528398,2.60684964,3836.1,3835.7,1e-08]
[1760717528575,0.0999,3836.7,3835.7,1e-08]
[1760717528763,2.60701809,3835.8,3835.7,1e-08]
[1760717528963,4.90728666,3835.8,3835.7,1e-08]
[1760717529189,5.00718666,3835.8,3835.7,1e-08]
[1760717529780,2.60701809,3835.8,3835.7,1e-08]
[1760717530808,2.70691809,3835.8,3835.7,1e-08]
[1760717531769,2.70691809,3835.8,3834.9,1e-08]
[1760717531968,8.23340592,3835.0,3834.9,1e-08]
[1760717532173,4.33556192,3835.0,3834.9,1e-08]
[1760717532384,5.1297657,3835.0,3834.9,1e-08]
[1760717532564,5.7633657,3835.0,3834.9,1e-08]
[1760717532768,5.17522184,3835.0,3834.9,1e-08]
[1760717532995,5.80882184,3835.0,3834.9,1e-08]
[1760717533180,9.24239184,3835.0,3834.9,1e-08]
[1760717533678,2.60871833,3833.3,3833.2,1e-08]
[1760717533875,2.86959016,3833.3,3833.2,1e-08]
[1760717534075,4.69859016,3833.3,3833.2,1e-08]
[1760717534277,4.59759016,3833.3,3833.2,1e-08]
[1760717534683,2.60871833,3833.3,3833.2,1e-08]
[1760717535271,0.1018,3834.3,3833.2,1e-08]
[1760717535272,0.1026,3835.2,3833.2,0.45130001]
[1760717535516,2.60853048,3833.6,3833.2,1e-08]
[1760717535708,2.60871833,3833.3,3833.2,1e-08]
[1760717536683,1.728,3834.6,3833.2,0.45130001]
[1760717536885,0.1033,3834.6,3833.2,1e-08]
[1760717537071,0.173,3835.1,3833.3,0.4513]
[1760717537273,2.60698632,3835.9,3833.3,0.4513]
[1760717537481,0.2123,3836.0,3833.3,0.4513]
[1760717537482,2.60783461,3834.6,3833.4,0.0260865]
[1760717537787,0.40904954,3835.1,3834.5,0.2214]
[1760717537988,0.40904954,3835.1,3833.5,0.6727]
[1760717538226,2.60762992,3834.9,3833.5,0.6727]
[1760717538512,2.60802536,3834.4,3833.5,3.28123185]
[1760717538718,2.60807198,3834.3,3833.5,3.87022684]
[1760717538890,0.40902408,3834.6,3833.6,3.05981419]
[1760717539092,0.40902408,3834.6,3833.6,0.4513]
[1760717539279,0.40902408,3834.6,3833.5,0.2214]
[1760717539486,2.60809094,3834.3,3833.6,0.4513]
[1760717539686,2.60813507,3834.2,3833.6,0.4513]
[1760717539886,0.40902408,3834.6,3833.6,0.77943402]
[1760717540194,0.04545273,3835.9,3834.5,0.1296]
[1760717540195,2.60771351,3834.8,3834.5,0.1296]
[1760717540388,2.60771351,3834.8,3833.5,0.2214]
[1760717540389,0.40899479,3835.2,3835.1,0.1296]
[1760717540593,0.40899479,3835.2,3834.7,0.351]
[1760717540820,0.40899479,3835.2,3835.1,0.1296]
[1760717541023,2.60774767,3834.8,3834.2,0.2214]
[1760717541190,2.60769792,3834.8,3834.7,0.1296]
[1760717541519,2.60769792,3834.8,3833.7,2.60843742]
[1760717541520,0.26076979,3834.8,3833.3,0.4513]
[1760717541702,2.60783393,3834.6,3833.0,0.2162]
[1760717541903,2.60866487,3833.4,3833.0,0.2162]
[1760717542104,2.60866487,3833.4,3832.7,0.2162]
[1760717542105,2.60871833,3833.3,3832.7,0.2162]
[1760717542314,2.60871833,3833.3,3832.4,0.2162]
[1760717542720,2.71181833,3833.3,3831.3,0.2162]
[1760717542883,4.43981833,3833.3,3831.3,0.2162]
[1760717543085,16.89037992,3833.3,3831.0,0.2214]
[1760717543420,8.25334192,3833.3,3831.0,0.2214]
[1760717543630,11.64697092,3833.3,3831.1,0.428]
[1760717543827,5.84148292,3833.3,3831.1,0.428]
[1760717544040,9.18448292,3833.3,3833.1,0.001]
[1760717544529,35.84148292,3833.3,3833.1,0.001]
[1760717544733,4.97038639,3833.2,3833.1,0.001]
[1760717544942,7.24617545,3833.2,3833.1,0.001]
[1760717545427,4.43988639,3833.2,3833.1,0.001]
[1760717545798,0.1045,3835.7,3833.1,0.6452]
[1760717546023,0.1045,3835.7,3833.2,0.428]
[1760717546213,2.60805263,3834.3,3833.3,2.6086512]
[1760717546420,0.2112,3835.8,3834.2,0.2162]
[1760717546616,0.2112,3835.8,3834.3,0.428]
[1760717546617,0.29946163,3835.8,3834.3,0.428]
[1760717546850,0.1045,3836.3,3834.3,0.428]
[1760717547017,0.1769,3836.4,3834.7,2.60770125]
[1760717547340,0.1769,3836.4,3835.0,2.60754062]
[1760717547651,2.60654052,3836.6,3834.8,0.428]
[1760717547652,2.60703744,3835.8,3834.8,0.45407697]
[1760717547952,2.60633861,3836.8,3835.7,0.2162]
[1760717547953,2.6068845,3836.0,3835.7,0.2162]
[1760717548129,2.60701809,3835.8,3835.7,0.2162]
[1760717548330,2.65177615,3836.8,3835.0,0.2162]
[1760717548331,2.6072858,3835.5,3835.0,0.2162]
[1760717548534,2.60661036,3836.4,3835.0,0.2162]
[1760717548778,0.26066104,3836.3,3835.0,0.2162]
[1760717548917,2.60640654,3836.7,3834.6,0.428]
[1760717548918,2.60756317,3835.0,3834.6,0.428]
[1760717549251,2.60756317,3835.0,3834.2,0.2162]
[1760717549252,2.60756798,3835.0,3834.2,0.2162]
[1760717549451,0.2091,3835.9,3834.2,0.2162]
[1760717549652,2.60769251,3834.9,3834.2,0.2162]
[1760717549856,2.60783063,3834.7,3834.2,0.2162]
[1760717550059,0.2091,3835.9,3834.3,0.428]
[1760717550230,2.60721926,3835.6,3834.3,0.428]
[1760717550565,2.60784973,3834.6,3834.3,0.428]
[1760717550751,2.60775151,3834.8,3834.4,0.428]
[1760717550954,2.6075672,3835.0,3834.4,0.428]
[1760717551129,2.60722823,3835.5,3834.2,0.2162]
[1760717551329,2.60776666,3834.7,3834.2,0.2162]
[1760717551537,2.60776666,3834.7,3834.3,0.428]
[1760717551731,2.60776666,3834.7,3834.6,0.1296]
[1760717552253,2.6076531,3834.9,3833.8,0.2162]
[1760717552254,2.60820211,3834.1,3833.8,0.2162]
[1760717552453,2.60803797,3834.3,3834.2,0.1304]
[1760717552961,2.60769792,3834.8,3834.2,0.1304]
[1760717553153,0.107,3835.4,3834.2,0.1304]
[1760717553331,2.73714632,3835.1,3834.4,0.1296]
[1760717553531,0.2714222,3835.3,3833.8,0.2162]
[1760717553861,0.2714222,3835.3,3833.1,2.82600485]
[1760717553862,2.60824204,3834.0,3833.1,0.2172]
[1760717554055,2.60878639,3833.2,3833.1,0.001]
[1760717554992,0.40921578,3833.4,3833.1,0.6452]
[1760717555154,0.1725,3835.5,3833.2,0.428]
[1760717555357,2.60701809,3835.8,3833.5,0.6336]
[1760717555582,0.2091,3835.9,3833.2,1.728]
[1760717555583,0.40906408,3835.3,3833.2,1.728]
[1760717555786,2.60799366,3834.4,3833.6,2.60844842]
[1760717555999,2.60799366,3834.4,3833.7,2.60843794]
[1760717556179,0.40906408,3835.3,3833.8,0.26084379]
[1760717556501,0.40906408,3835.3,3833.9,0.4540831]
[1760717556676,2.60755696,3835.1,3834.0,2.6082214]
[1760717556995,2.60654242,3836.5,3835.0,0.2162]
[1760717557188,2.60756619,3835.0,3834.1,0.6442]
[1760717557358,2.60800285,3834.4,3834.1,0.6442]
[1760717557677,2.60786765,3834.6,3834.2,0.428]
[1760717557987,2.60797789,3834.4,3834.2,0.428]
[1760717558293,2.60708605,3835.7,3834.3,0.428]
[1760717558597,0.40898705,3835.3,3834.3,0.428]
[1760717558889,2.60789879,3834.6,3834.1,0.2162]
[1760717559095,0.40898705,3835.3,3834.1,0.2162]
[1760717559270,2.60807837,3834.3,3834.1,0.2162]
[1760717559457,2.60742594,3835.2,3834.1,0.2162]
[1760717559654,2.60779436,3834.7,3834.1,0.2162]
[1760717559858,2.60788116,3834.6,3834.1,0.2162]
[1760717560098,0.04544739,3835.9,3834.2,0.45408105]
[1760717560260,2.60738312,3835.3,3834.3,2.60803797]
[1760717560462,0.40897223,3835.8,3834.5,2.60790129]
[1760717560795,0.40897223,3835.8,3834.9,2.60758329]
[1760717560955,0.40897223,3835.8,3834.6,0.9503981]
[1760717560956,2.60727802,3835.5,3835.0,0.428]
[1760717561157,0.14744167,3836.7,3834.6,0.5223981]
[1760717561158,0.04544167,3836.7,3835.3,2.60735796]
[1760717561492,0.002,3839.2,3834.6,0.5223981]
[1760717561493,2.60667492,3836.4,3835.4,0.428]
[1760717561662,2.60667492,3836.4,3835.4,3.03528407]
[1760717561885,3.01499484,3837.1,3836.3,0.2162]
[1760717561886,0.40884404,3837.1,3836.3,0.2162]
[1760717562085,0.002,3837.5,3836.5,6.98109697]
[1760717562322,0.002,3837.5,3836.6,0.02606474]
[1760717562619,0.002,3837.5,3836.7,0.428]
[1760717562810,0.002,3837.5,3836.8,2.60633861]
[1760717562987,0.002,3837.5,3836.9,0.30343386]
[1760717563183,0.002,3837.5,3836.7,0.428]
[1760717563518,0.002,3837.5,3836.9,14.198575]
[1760717563720,0.002,3837.5,3836.7,0.428]
[1760717563920,0.002,3837.5,3837.4,0.1296]
[1760717564418,0.002,3837.5,3837.4,0.5576]
[1760717564586,0.002,3837.5,3837.4,3.16353109]
[1760717564787,0.002,3837.5,3837.4,0.5576]
[1760717564988,0.002,3837.5,3836.5,0.6336]
[1760717565288,0.002,3837.5,3836.9,11.460131]
[1760717565483,0.002,3837.5,3836.8,0.428]
[1760717565712,0.002,3837.5,3836.8,3.03428888]
[1760717565918,0.002,3837.5,3836.9,2.6062665]
[1760717566221,0.002,3837.5,3836.8,0.428]
[1760717566403,2.60593531,3837.4,3836.8,0.428]
[1760717566603,0.002,3837.5,3836.9,1.728]
[1760717566800,0.002,3837.5,3837.1,2.60608071]
[1760717567015,0.002,3837.5,3837.1,2.60613484]
[1760717567215,0.002,3837.5,3837.2,0.428]
[1760717567416,0.002,3837.5,3837.3,0.02605999]
[1760717567723,0.002,3837.5,3837.3,0.428]
[1760717567890,0.002,3837.5,3836.9,0.428]
[1760717568292,0.002,3837.5,3836.5,9.382534]
[1760717568293,2.60605646,3837.3,3836.5,9.382534]
[1760717568611,2.60595242,3837.4,3836.5,1.728]
[1760717568813,2.60595242,3837.4,3836.6,3.03447448]
[1760717569124,2.60788505,3837.5,3836.6,0.428]
[1760717569336,2.60788505,3837.5,3836.7,2.60635059]
[1760717569547,0.002,3837.5,3836.7,0.73688628]
[1760717569719,2.60593109,3837.4,3836.8,1.728]
[1760717570037,0.002,3837.5,3836.6,0.428]
[1760717570214,2.60786882,3837.5,3836.6,0.428]
[1760717570419,2.60604959,3837.3,3836.7,1.728]
[1760717570741,0.002,3837.5,3836.6,0.428]
[1760717570915,0.002,3837.5,3836.3,0.2162]
[1760717571117,2.60635358,3836.8,3836.3,0.2162]
[1760717571312,2.60646514,3836.7,3836.3,0.2162]
[1760717571614,2.60645413,3836.7,3836.3,0.2162]
[1760717571817,2.60666117,3836.4,3835.7,0.4282]
[1760717572010,2.60664112,3836.4,3835.7,0.4282]
[1760717572211,2.60633861,3836.8,3835.7,0.4282]
[1760717572407,2.60654512,3836.5,3835.9,1.728]
[1760717572611,2.6066183,3836.4,3835.8,1.728]
[1760717572840,2.60668334,3836.3,3835.8,0.47632731]
[1760717573340,0.2104,3836.8,3835.0,0.6444]
[1760717573541,1.73,3838.3,3835.1,42.86731562]
[1760717573741,0.002,3837.5,3837.4,2.60593109]
[1760717573942,0.002,3837.5,3836.7,0.6618]
[1760717574117,0.002,3837.5,3836.4,0.2336]
[1760717574446,2.6078665,3837.5,3836.6,2.60646097]
[1760717574646,0.002,3837.5,3836.1,0.4282]
[1760717574850,2.60660021,3836.5,3836.1,0.2336]
[1760717575057,2.60660021,3836.5,3835.8,2.6070135]
[1760717575348,0.1747,3836.9,3836.4,0.1296]
[1760717575556,2.60642761,3836.7,3835.8,2.60701146]
[1760717575857,0.53833948,3837.3,3835.9,2.86763516]
[1760717576146,0.002,3837.5,3836.6,0.1296]